fUST/lending_fUST_20240101
["ID","MTS","AMOUNT","RATE_DAILY","PERIOD"]
[309743013,1704052247621,-500.0,0.00043835,2]
[309743014,1704052247630,-500.0,0.00043835,2]
[309743015,1704052247639,-500.0,0.00043835,2]
[309743016,1704052247648,-500.0,0.00043835,2]
[309743017,1704052247658,-500.0,0.00043835,2]
[309743018,1704052247671,-500.0,0.00043835,2]
[309743019,1704052247680,-359.32582878,0.00043835,2]
[309743020,1704052247690,-500.0,0.00043835,21]
[309743021,1704052247699,-506.77865438,0.00043835,21]
[309743022,1704052247710,-510.59783115,0.00043835,21]
[309743023,1704052247719,-500.0,0.00043835,21]
[309743024,1704052247728,-500.0,0.00043835,21]
[309743025,1704052247737,-540.35877074,0.00043835,21]
[309743026,1704052247748,-500.0,0.00043835,21]
[309743027,1704052247756,-278.8774504,0.00043835,21]
[309743028,1704052247765,-500.0,0.00043835,21]
[309743029,1704052247774,-500.0,0.00043835,21]
[309743030,1704052247783,-506.76158508,0.00043835,21]
[309743031,1704052247793,-500.0,0.00043835,21]
[309743032,1704052247802,-500.0,0.00043835,21]
[309743033,1704052247811,-512.90087039,0.00043835,21]
[309743034,1704052247820,-503.28972305,0.00043835,21]
[309743035,1704052247830,-504.73860909,0.00043835,21]
[309743036,1704052247839,-504.51910752,0.00043835,21]
[309743037,1704052247849,-500.0,0.00043835,21]
[309743038,1704052247858,-500.0,0.00043835,21]
[309743039,1704052247867,-226.0511345,0.00043835,21]
[309743040,1704052247876,-305.20969114,0.00043835,21]
[309743041,1704052247885,-1934.47,0.00043835,21]
[309743042,1704052247894,-1934.47,0.00043835,21]
[309743043,1704052247903,-1934.47,0.00043835,21]
[309743044,1704052247912,-1934.47,0.00043835,21]
[309743045,1704052247923,-1934.47,0.00043835,21]
[309743046,1704052247933,-1934.47,0.00043835,21]
[309743047,1704052247943,-1934.47,0.00043835,21]
[309743048,1704052247953,-1934.47,0.00043835,21]
[309743049,1704052247962,-1934.47,0.00043835,21]
[309743050,1704052247971,-1934.47,0.00043835,21]
[309743051,1704052248040,-410.13432385,0.00043835,21]
[309743052,1704052248184,-194.2520832,0.0003989,2]
[309743053,1704052248193,-805.7479168,0.00039897,2]
[309744112,1704053438184,-154.8915759,0.00024999,4]
[309744113,1704053438193,-8988.02441895,0.00025,2]
[309744114,1704053438203,-2998.75034603,0.00025536,2]
[309744115,1704053438213,-781.50075545,0.00026,2]
[309744116,1704053438222,-739.06665306,0.0003,2]
[309744133,1704053442882,-2840.51705271,0.0003,2]
[309744134,1704053442892,-1789.76629571,0.00033,4]
[309744194,1704053924645,-1500.0,0.00045888,120]
[309744195,1704053924670,-203.6377486,0.00045888,120]
[309744196,1704053924695,-157.20905597,0.00045888,120]
[309744197,1704053924720,-1602.95963399,0.00045888,120]
[309744198,1704053924743,-150.93662802,0.00045888,120]
[309744199,1704053924769,-496385.25693342,0.00045888,30]
[309744200,1704053963818,-500000.0,0.00045888,30]
[309744201,1704053968070,-200.0,0.00036771,30]
[309744202,1704053968094,-159.266017,0.00037207,120]
[309744203,1704053968118,-1327.0,0.00041978,32]
[309744204,1704053968142,-1327.0,0.0004294,36]
[309744205,1704053968165,-159.266017,0.00043409,120]
[309744206,1704053968187,-35823.46755447,0.000435,120]
[309744207,1704053968210,-1328.0,0.00043747,38]
[309744208,1704053968232,-165.77,0.0004382,60]
[309744209,1704053968254,-150.0,0.0004383,60]
[309744210,1704053968277,-507.96933426,0.00043834,30]
[309744211,1704053968379,-500.0,0.00043835,30]
[309744212,1704053968402,-510.58059495,0.00043835,30]
[309744374,1704054643090,-781.50075545,0.0002738,2]
[309744376,1704054643100,-154.87609912,0.00027381,4]
[309744377,1704054643109,-4196.8838304,0.00027381,2]
[309745817,1704057032485,-154.8915759,0.00023958,4]
[309745819,1704057032495,-268.5775154,0.00023959,2]
[309745821,1704057032504,-30481.73542919,0.0002396,2]
[309745823,1704057032513,-1225.7047305,0.0002399,2]
[309745824,1704057032524,-781.50075545,0.00026344,2]
[309745825,1704057032533,-165.297408,0.00026577,2]
[309745827,1704057032544,-200.0,0.00026973,15]
[309745829,1704057032554,-384.246844,0.00027178,2]
[309745830,1704057032564,-2567.87733819,0.00027342,2]
[309745832,1704057032575,-2623.66007941,0.00027381,7]
[309745834,1704057032585,-452.18722157,0.00027381,2]
[309745836,1704057032594,-169.9529526,0.00028139,2]
[309745838,1704057032604,-165.297408,0.00028389,2]
[309745840,1704057032613,-12299.55565058,0.00029319,2]
[309746252,1704057043550,-1202.12343358,0.00029319,2]
[309746254,1704057043562,-389.1756126,0.00029319,2]
[309746256,1704057043574,-1849.26333094,0.00029319,2]
[309746258,1704057043584,-155.40166656,0.000299,2]
[309746260,1704057043593,-576.96128948,0.0003,2]
[309746565,1704057046844,-250.0,0.0003,2]
[309746658,1704058231635,-154.8915759,0.00024048,4]
[309746660,1704058231646,-943.23675065,0.00024048,2]
[309746662,1704058231656,-559.25397342,0.00024049,2]
[309746664,1704058231666,-1721.07220697,0.00024049,2]
[309746666,1704058231676,-5000.0,0.0002405,2]
[309746668,1704058231686,-973.92963115,0.00024629,2]
[309746670,1704058231695,-343.18595768,0.0002463,2]
[309746673,1704058231706,-154.8915759,0.00024631,2]
[309746677,1704058231716,-18219.46466728,0.00024633,2]
[309746794,1704058238047,-6680.53533272,0.00024633,2]
[309746796,1704058238057,-166.666666,0.00024641,2]
[309746798,1704058238066,-2479.19472551,0.00025,2]
[309746800,1704058238075,-166.666666,0.00025313,2]
[309746802,1704058238084,-299.48910497,0.00025346,2]
[309746804,1704058238094,-423.083453,0.00025452,2]
[309746806,1704058238103,-166.666666,0.00025984,2]
[309746808,1704058238112,-194.26952,0.00026301,2]
[309746810,1704058238122,-166.666666,0.00026656,2]
[309746812,1704058238131,-568.14335293,0.00027219,2]
[309746813,1704058238139,-166.666666,0.00027328,2]
[309746814,1704058238149,-194.26952,0.00027599,2]
[309746815,1704058238158,-200.0,0.0002787,15]
[309746816,1704058238168,-166.666666,0.00028,2]
[309746817,1704058238177,-194.26952,0.00028896,2]
[309746818,1704058238187,-155.40166656,0.0002989,2]
[309746819,1704058238196,-155.40166656,0.00029893,2]
[309746820,1704058238206,-155.40166656,0.00029897,2]
[309746821,1704058238216,-155.40166656,0.000299,2]
[309746822,1704058238226,-151.0,0.0002999,2]
[309746823,1704058238236,-151.0,0.0002999,2]
[309746824,1704058238246,-1833.86,0.0002999,3]
[309746825,1704058238255,-1528.21,0.0002999,3]
[309746826,1704058238265,-1273.51,0.0002999,3]
[309746827,1704058238275,-151.0,0.00029999,2]
[309746828,1704058238285,-151.0,0.00029999,2]
[309746829,1704058238294,-582.8,0.00029999,2]
[309746830,1704058238304,-582.8,0.00029999,2]
[309746831,1704058238313,-582.8,0.00029999,2]
[309746832,1704058238322,-164.4,0.00029999,2]
[309746833,1704058238332,-779.18450677,0.0003,2]
[309746834,1704058238342,-10000.0,0.0003,3]
[309746835,1704058238352,-176543.25085924,0.0003,14]
[309746836,1704058238364,-8413.83134911,0.0003,14]
[309746837,1704058238374,-151.0,0.0003,2]
[309746838,1704058238383,-151.0,0.0003,2]
[309746839,1704058238392,-151.0,0.0003,2]
[309746841,1704058238404,-151.0,0.0003,2]
[309746842,1704058238412,-182.70806,0.0003,2]
[309746844,1704058238421,-156.0,0.0003,2]
[309746846,1704058238431,-194.26952,0.00030194,2]
[309746848,1704058238440,-984.02539987,0.00032,2]
[309746851,1704058238449,-568.14335293,0.00032219,2]
[309746852,1704058238458,-150.0,0.00032219,2]
[309746854,1704058238466,-151.0,0.00032873,2]
[309746856,1704058238476,-268.20703983,0.00032873,4]
[309746858,1704058238485,-2673.30441181,0.00033,4]
[309746860,1704058238494,-151.0,0.00033,2]
[309746862,1704058238504,-156.0,0.00033,2]
[309746864,1704058238514,-1268.15121831,0.00033003,2]
[309746866,1704058238523,-178.52204211,0.00033003,2]
[309746868,1704058238533,-197.33860671,0.00033003,2]
[309746870,1704058238542,-206.20158201,0.00033003,2]
[309746872,1704058238551,-6197.67114126,0.00034,2]
[309746874,1704058238560,-1000.0,0.00034,7]
[309746876,1704058238570,-151.0,0.00034,2]
[309746879,1704058238579,-174.72204,0.00034904,2]
[309746880,1704058238588,-665.95736759,0.0003496,5]
[309746883,1704058238599,-200.0,0.00035205,2]
[309746884,1704058238608,-193.615619,0.00035616,120]
[309746887,1704058238618,-156.0,0.00036,2]
[309746897,1704058238627,-150.89437394,0.00036363,7]
[309746900,1704058238730,-169.0,0.00037,2]
[309746902,1704058238739,-150.89437394,0.00037105,4]
[309746904,1704058238748,-150.89437394,0.00037862,2]
[309746906,1704058238758,-1500.0,0.00037945,7]
[309746908,1704058238768,-423.083453,0.00038178,2]
[309746910,1704058238777,-151.0,0.00038178,2]
[309746912,1704058238786,-500.0,0.00038356,2]
[309746914,1704058238795,-443.0,0.00038356,2]
[309746916,1704058238804,-830.46486305,0.0003863,14]
[309747301,1704058242676,-1005.53513695,0.0003863,14]
[309747303,1704058242686,-196.58829663,0.0003863,14]
[309747306,1704058242698,-389.1756126,0.0003863,14]
[309747736,1704059441126,-170.208798,0.00027196,2]
[309747737,1704059441136,-213.649437,0.00027635,2]
[309747738,1704059441146,-559.25397342,0.00027859,2]
[309747739,1704059441155,-154.8915759,0.0002786,4]
[309747740,1704059441165,-343.18595768,0.0002786,2]
[309747741,1704059441174,-787.89502509,0.00027861,2]
[309747833,1704060631996,-973.92963115,0.00025723,2]
[309747835,1704060632006,-154.8915759,0.00025724,4]
[309747837,1704060632015,-154.8915759,0.00025754,2]
[309747839,1704060632025,-189.38111764,0.00025761,2]
[309747841,1704060632034,-170.208798,0.00026649,2]
[309747843,1704060632043,-187.3137686,0.00026686,2]
[309747846,1704060632052,-1991.37740508,0.00026933,2]
[309748126,1704061843243,-546.10131354,0.00024267,2]
[309748127,1704061843255,-324.3849193,0.00024267,2]
[309748128,1704061843266,-343.18595768,0.00024268,2]
[309748129,1704061843277,-108.87675078,0.00024268,4]
[309748140,1704061846351,-46.01482512,0.00024268,4]
[309748141,1704061846360,-439.87303113,0.00024269,2]
[309748142,1704061846372,-267.60680664,0.00024269,2]
[309748143,1704061846381,-1651.89899132,0.00024269,5]
[309748174,1704062688678,268.5775154,0.0002,2]
[309748178,1704062770895,174.72204,0.00019763,2]
[309748179,1704062771651,563.600048,0.00020197,2]
[309748194,1704063025923,24900.0,0.00019736,2]
[309748195,1704063026529,5000.0,0.00019736,2]
[309748223,1704063032457,-559.25397342,0.00020707,2]
[309748225,1704063032467,-343.18595768,0.00020708,2]
[309748227,1704063032476,-154.87609912,0.00020709,4]
[309748229,1704063032485,-1721.07220697,0.0002071,2]
[309748231,1704063032494,-1262.18185392,0.0002071,2]
[309748232,1704063032503,-36744.01260579,0.00020712,2]
[309748234,1704063032512,-901.45,0.00020729,2]
[309748236,1704063032521,-387.172925,0.00020788,2]
[309748238,1704063032530,-151.0,0.00021459,2]
[309748239,1704063032540,-169.9529526,0.00021459,2]
[309748240,1704063032549,-1061.26,0.00021782,3]
[309748242,1704063032558,-151.0,0.00021789,2]
[309748244,1704063032567,-165.753827,0.00021918,2]
[309748246,1704063032577,-150.0,0.00022169,2]
[309748247,1704063032586,-200.0,0.00022789,7]
[309748249,1704063032595,-165.753827,0.000232,2]
[309748251,1704063032605,-884.38,0.0002399,3]
[309748253,1704063032614,-7634.40773598,0.00023998,2]
[309748255,1704063032623,-223.52390362,0.00023998,2]
[309748257,1704063032632,-1236.98313093,0.00023998,2]
[309748259,1704063032641,-196.21226384,0.00023999,2]
[309748260,1704063032650,-3974.73576151,0.00023999,5]
[309748262,1704063032660,-35522.57398206,0.00024,2]
[309748263,1704063032672,-4221.46762525,0.00024,2]
[309748319,1704063038732,-973.92963115,0.00020706,2]
[309748321,1704063038742,-498.80499086,0.00020709,2]
[309748327,1704063038791,-280.93799168,0.00020709,2]
[309748450,1704063042097,-6759.2611447,0.00020709,2]
[309748451,1704063042109,-18740.65821845,0.00024,2]
[309748532,1704063652214,25459.2702015,0.00020223,2]
[309748533,1704063683496,250.0,0.00019997,2]
[309748535,1704063696392,859.5074307,0.00020222,2]
[309748537,1704063963686,24900.0,0.00020218,2]
[309748540,1704063986913,193.586462,0.00020218,2]
[309748544,1704064209880,595.982,0.000299,120]
[309748651,1704064234700,-154.86062544,0.0002092,4]
[309748654,1704064234710,-7539.00412724,0.00020921,2]
[309748656,1704064234718,-154.86062544,0.00020921,2]
[309748658,1704064234728,-287.3865801,0.00020922,2]
[309748660,1704064234739,-974.79527382,0.00020922,2]
[309748662,1704064234748,-139.94518886,0.00020922,2]
[309748664,1704064234759,-3516.03447623,0.00020922,2]
[309748780,1704064242435,-1205.37044943,0.00020922,2]
[309748781,1704064242445,-1677.45657618,0.00020923,2]
[309748782,1704064242455,-22090.20639509,0.00020924,2]
[309748783,1704064242464,-1036.76475612,0.00021,2]
[309748784,1704064242474,-175.323145,0.00021347,2]
[309748785,1704064242483,-154.84515485,0.00021899,2]
[309748786,1704064242494,-331.2882459,0.000219,2]
[309748787,1704064242504,-166.666666,0.00021918,2]
[309748788,1704064242514,-166.666666,0.00022431,2]
[309748789,1704064242524,-166.666666,0.00022944,2]
[309748790,1704064242534,-200.0,0.00023021,7]
[309748791,1704064242544,-166.666666,0.00023456,2]
[309748792,1704064242554,-166.666666,0.00023969,2]
[309748793,1704064242564,-973.92963115,0.00023989,2]
[309748794,1704064242575,-7163.88431495,0.0002399,2]
[309748795,1704064242586,-560.91502046,0.00023998,2]
[309748796,1704064242598,-179.5014743,0.00023998,2]
[309748797,1704064242608,-151.0,0.00023999,2]
[309748798,1704064242618,-7353.82930597,0.00023999,2]
[309748799,1704064242632,-21088.70981693,0.00023999,2]
[309748842,1704064243762,-3400.02,0.00023999,2]
[309748923,1704064247740,-505.28689673,0.00023999,2]
[309748925,1704064247756,-879.37336448,0.00023999,2]
[309748927,1704064247766,-615.77118213,0.00024,2]
[309748960,1704064997023,174.72204,0.0002018,2]
[309748961,1704065117651,154.84515485,0.0002018,2]
[309748962,1704065119919,545.62565251,0.0002018,2]
[309748963,1704065133653,154.84515485,0.0002018,2]
[309748965,1704065136051,186.86266286,0.0002018,2]
[309748967,1704065149647,155.57603546,0.0002018,2]
[309748968,1704065176963,572.0911455,0.00019842,2]
[309748997,1704065380678,24900.0,0.0001979,2]
[309749050,1704065431801,-7848.17357657,0.00020779,2]
[309749052,1704065431811,-4861.35011452,0.0002078,2]
[309749054,1704065431821,-328.58680003,0.0002078,2]
[309749056,1704065431831,-343.18595768,0.00020781,2]
[309749058,1704065431841,-1773.40482744,0.00020781,2]
[309749060,1704065431851,-438.51761226,0.00020781,2]
[309749062,1704065431860,-899.40143974,0.00020782,2]
[309749064,1704065431871,-36744.01260579,0.00020782,2]
[309749066,1704065431881,-154.84515485,0.00020782,2]
[309749068,1704065431891,-7539.00412724,0.00020782,2]
[309749070,1704065431901,-22090.20639509,0.00020783,2]
[309749072,1704065431910,-973.92963115,0.00020783,2]
[309749073,1704065431920,-154.84515485,0.00020784,4]
[309749075,1704065431929,-192.038756,0.00020865,2]
[309749077,1704065431939,-220.8588306,0.00021899,2]
[309749079,1704065431948,-166.666666,0.00021918,2]
[309749080,1704065431958,-166.666666,0.00022431,2]
[309749082,1704065431967,-166.666666,0.00022944,2]
[309749084,1704065431977,-166.666666,0.00023456,2]
[309749086,1704065431986,-166.666666,0.00023969,2]
[309749088,1704065431996,-7587.17416996,0.00024,2]
[309749091,1704065432006,-495.13724768,0.00024,5]
[309749092,1704065432016,-1602.51426347,0.00024,2]
[309749094,1704065432026,-443.83419707,0.00024,4]
[309749095,1704065432035,-297.1627242,0.00024,2]
[309749096,1704065432045,-154.97524298,0.00024,2]
[309749097,1704065432054,-151.0,0.00024,2]
[309749098,1704065432066,-1036.76475712,0.00024268,2]
[309749099,1704065432075,-733.12521325,0.00024269,2]
[309749100,1704065432086,-166.666666,0.00024482,2]
[309749101,1704065432097,-200.0,0.00024658,15]
[309749102,1704065432108,-4699.79390334,0.00025,2]
[309749103,1704065432119,-200.0,0.00025479,2]
[309749104,1704065432128,-781.50075545,0.000263,2]
[309749105,1704065432139,-251.217256,0.00026301,2]
[309749106,1704065432149,-220.8588306,0.00026899,2]
[309749107,1704065432159,-151.0,0.00026933,2]
[309749108,1704065432169,-2623.66007941,0.00026933,7]
[309749109,1704065432179,-251.217256,0.00027275,2]
[309749110,1704065432190,-251.217256,0.00028248,2]
[309749111,1704065432200,-200.0,0.00028485,15]
[309749112,1704065432209,-251.217256,0.00029221,2]
[309749113,1704065432218,-2567.87733819,0.00029398,2]
[309749114,1704065432228,-154.86062544,0.00029601,2]
[309749115,1704065432237,-516.14,0.00029988,3]
[309749116,1704065432247,-1573.77393442,0.00029998,2]
[309749117,1704065432256,-629.76953277,0.00029998,2]
[309749118,1704065432267,-726.07199335,0.00029998,2]
[309749119,1704065432276,-3835.1023978,0.00029998,2]
[309749120,1704065432286,-493.6,0.00029998,2]
[309749121,1704065432297,-271.23980167,0.00029998,2]
[309749122,1704065432394,-154.84515485,0.00029998,2]
[309749123,1704065432426,-154.84515485,0.00029998,2]
[309749124,1704065432436,-154.85628438,0.00029998,2]
[309749125,1704065432446,-154.84515485,0.00029998,2]
[309749126,1704065432456,-154.84515485,0.00029998,2]
[309749127,1704065432465,-160.77460358,0.00029998,2]
[309749128,1704065432475,-942.38164887,0.00029998,2]
[309749129,1704065432484,-156.4879061,0.00029998,2]
[309749130,1704065432493,-166.18669559,0.00029998,2]
[309749131,1704065432503,-171.1336958,0.00029998,2]
[309749132,1704065432516,-32.92938976,0.00029998,2]
[309749133,1704065432527,-473.38281242,0.00029998,2]
[309749134,1704065432538,-242.83754625,0.00029998,2]
[309749135,1704065432547,-766.53184072,0.00029998,2]
[309749136,1704065432556,-2848.27920867,0.00029998,2]
[309749153,1704065438120,-973.92963115,0.00020779,2]
[309749154,1704065438132,-984.25,0.00029988,3]
[309749155,1704065438143,-1002.94124675,0.00029998,2]
[309749156,1704065438153,-559.25397342,0.00029998,2]
[309749157,1704065438163,-2701.73501351,0.00029998,2]
[309749158,1704065438175,-1572.39221215,0.00029998,2]
[309749159,1704065438186,-5849.1331473,0.00029998,2]
[309749225,1704065441101,-1098.36504466,0.00029998,2]
[309749326,1704066638269,-1869.34670087,0.00024545,2]
[309749327,1704066638278,-343.18595768,0.00024546,2]
[309749328,1704066638288,-899.40143974,0.00024546,2]
[309749329,1704066638297,-182.18331427,0.00024547,2]
[309749330,1704066638306,-154.84515485,0.00024548,4]
[309749331,1704066638315,-4861.35011452,0.00024548,2]
[309749332,1704066638325,-192.038756,0.00024556,2]
[309749333,1704066638334,-167.623598,0.00025255,2]
[309749334,1704066638343,-24900.0,0.00025563,2]
[309749335,1704066638353,-781.50075545,0.000263,2]
[309749336,1704066638362,-850.243451,0.00026301,2]
[309749338,1704066638371,-167.623598,0.00026977,2]
[309749340,1704066638381,-4505.0327371,0.00026998,2]
[309749342,1704066638390,-850.243451,0.00027275,2]
[309749344,1704066638399,-200.0,0.00027751,15]
[309749346,1704066638409,-255.25884108,0.00027898,2]
[309749347,1704066638418,-850.243451,0.00028248,2]
[309749348,1704066638427,-167.623598,0.00028698,2]
[309749349,1704066638436,-850.243451,0.00029221,2]
[309749350,1704066638445,-1233.24,0.00029667,2]
[309749351,1704066638454,-1233.24,0.00029667,2]
[309749352,1704066638463,-1233.24,0.00029667,2]
[309749353,1704066638472,-1233.24,0.00029667,2]
[309749354,1704066638481,-1233.24,0.00029667,2]
[309749355,1704066638490,-1233.24,0.00029667,2]
[309749356,1704066638500,-1233.24,0.00029667,2]
[309749357,1704066638509,-1233.24,0.00029667,2]
[309749358,1704066638518,-1233.24,0.00029667,2]
[309749359,1704066638528,-1233.24,0.00029667,2]
[309749360,1704066638537,-154.84515485,0.00029698,2]
[309749361,1704066638546,-1113.03118609,0.000298,2]
[309749362,1704066638555,-820.21,0.0002989,3]
[309749363,1704066638564,-26585.66263212,0.000299,2]
[309749364,1704066638573,-8226.51901403,0.00029998,2]
[309749365,1704066638583,-397.56699795,0.00029998,2]
[309749366,1704066638592,-879.47729956,0.00029998,2]
[309749367,1704066638601,-278.49744533,0.00029998,2]
[309749368,1704066638611,-302.48258611,0.00029998,2]
[309749369,1704066638621,-4267.33689761,0.00029998,2]
[309749370,1704066638630,-2448.59544987,0.00029998,2]
[309749371,1704066638639,-425.02927843,0.00029998,2]
[309749372,1704066638649,-635.6128897,0.00029998,2]
[309749373,1704066638658,-1356.4060549,0.00029998,2]
[309749374,1704066638667,-154.87609912,0.00029998,2]
[309749375,1704066638676,-36673.29322697,0.0003,2]
[309749600,1704066646062,-1725.52939623,0.0003,2]
[309749725,1704067833411,-154.84515485,0.00026932,2]
[309749727,1704067833422,-154.84515485,0.00026932,4]
[309749729,1704067833431,-612.47089973,0.00026933,2]
[309749731,1704067833442,-264.08635189,0.00026934,2]
[309749733,1704067833452,-973.92963115,0.00026992,2]
[309749735,1704067833463,-343.18595768,0.00026993,2]
[309749737,1704067833474,-7043.55676724,0.00026998,2]
[309749740,1704067833485,-73.45405738,0.00027225,2]
[309749779,1704067838496,-678.8162214,0.00026932,2]
[309749780,1704067838506,-1104.75752822,0.00027225,2]
[309749781,1704067838516,-940.15172,0.00027331,2]
[309749782,1704067838525,-170.17256072,0.000279,2]
[309749783,1704067838534,-940.15172,0.00028342,2]
[309749784,1704067838544,-940.15172,0.00029354,2]
[309749785,1704067838554,-297.72241106,0.000297,2]
[309749786,1704067838564,-178.05966521,0.000299,4]
[309749787,1704067838573,-155.11744289,0.00029998,2]
[309749788,1704067838583,-168.05190739,0.00029998,2]
[309749789,1704067838592,-215.8913356,0.00029998,2]
[309749790,1704067838602,-296.86243822,0.00029998,2]
[309749791,1704067838611,-155.85303521,0.00029999,2]
[309749792,1704067838620,-443.1951957,0.0003,2]
[309749800,1704067841440,-2292.77705335,0.0003,2]
[309749978,1704069032456,-154.84515485,0.00027815,2]
[309749979,1704069032466,-943.23675065,0.00027815,2]
[309749980,1704069032477,-343.18595768,0.00027815,2]
[309749981,1704069032487,-154.84515485,0.00027816,4]
[309749982,1704069032498,-154.84515485,0.00027817,2]
[309749983,1704069032507,-176.872833,0.00027837,2]
[309749984,1704069032517,-150.0,0.000279,2]
[309749985,1704069032527,-376.060688,0.00028075,2]
[309749986,1704069032536,-376.060688,0.00029113,2]
[309749987,1704069032545,-4457.13963533,0.00029899,2]
[309749988,1704069032555,-1207.21529608,0.00029998,2]
[309749989,1704069032564,-154.84515485,0.00029998,2]
[309749990,1704069032574,-559.04514531,0.00029998,2]
[309749991,1704069032584,-326.569313,0.00029999,2]
[309749992,1704069032596,-188.38502859,0.00029999,2]
[309749993,1704069032606,-9009.34880837,0.0003,2]
[309750170,1704069041790,-3032.9418323,0.0003,2]
[309750172,1704069041803,-3944.95372955,0.0003,2]
[309750203,1704069043426,-1134.0,0.0003,2]
[309750210,1704069046465,-2637.23027955,0.0003,2]
[309750504,1704070241950,-154.84515485,0.00026974,2]
[309750505,1704070241960,-154.84515485,0.00026974,4]
[309750507,1704070241969,-343.18595768,0.00026975,2]
[309750508,1704070241978,-606.84363843,0.00027,2]
[309750546,1704070244499,-343.49604143,0.00027,2]
[309750819,1704071431923,-943.23675065,0.00021261,2]
[309750821,1704071431933,-188.76217617,0.00021262,3]
[309750823,1704071431944,-851.62044368,0.0002136,2]
[309750825,1704071431955,-154.84515485,0.00021361,4]
[309750827,1704071431965,-14.36442949,0.00021362,2]
[309750830,1704071431978,-140.48072536,0.00021362,2]
[309750832,1704071431988,-228.70599201,0.00024896,2]
[309750864,1704071439730,-330.54798141,0.00024896,2]
[309750865,1704071439740,-150.0,0.000249,2]
[309750866,1704071439750,-200.0,0.00025479,2]
[309750867,1704071439759,-781.50075545,0.00026,2]
[309750868,1704071439769,-426.610218,0.00026301,2]
[309750869,1704071439779,-343.18595768,0.00026729,2]
[309750870,1704071439788,-154.86062544,0.0002673,2]
[309750871,1704071439798,-7839.41964909,0.00026999,2]
[309750876,1704071441217,-1469.43650311,0.00026999,2]
[309750887,1704071445974,-1549.15651516,0.00026999,2]
[309750888,1704071445984,-154.84515485,0.00027,2]
[309750889,1704071445995,-2623.66007941,0.00027,7]
[309750890,1704071446004,-733.12521325,0.00027,2]
[309750891,1704071446014,-2545.9438222,0.00027274,2]
[309750892,1704071446023,-393.55249407,0.00027275,2]
[309751356,1704073153465,175.0,0.00035616,120]
[309751386,1704073832340,-154.86062544,0.00025101,4]
[309751387,1704073832354,-943.79443279,0.00025102,2]
[309751388,1704073832363,-1744.68074348,0.00025139,2]
[309751389,1704073832373,-166.666666,0.00026875,2]
[309751390,1704073832383,-155.77377587,0.00027,2]
[309751391,1704073832393,-2546.99337017,0.00027,2]
[309751392,1704073832402,-286.4894022,0.00027181,2]
[309751393,1704073832412,-1367.90293804,0.00027275,7]
[309751394,1704073832422,-262.577675,0.00027328,2]
[309751395,1704073832431,-200.0,0.00027377,15]
[309751396,1704073832441,-5378.4070847,0.00027998,2]
[309751448,1704073841438,-3047.13207786,0.00027998,2]
[309751455,1704073841506,-247.69754463,0.00027998,2]
[309751501,1704073844951,-4771.83703968,0.00027998,2]
[309751502,1704073845007,-256.72537434,0.00027998,2]
[309751531,1704073846302,-154.86062544,0.00026998,4]
[309751532,1704073846315,-744.20753364,0.00027998,2]
[309751551,1704074060793,400.0,0.0002421,14]
[309751613,1704075032400,-1237.40369246,0.0002176,2]
[309751614,1704075032411,-328.14293882,0.0002176,2]
[309751615,1704075032422,-173.25301455,0.00021761,2]
[309751616,1704075032433,-154.86062544,0.00021859,4]
[309751617,1704075032444,-851.81467386,0.00021859,2]
[309751618,1704075032457,-4906.45463586,0.00024209,2]
[309751619,1704075032467,-704.4821417,0.0002421,14]
[309751620,1704075032477,-225.62738228,0.0002421,2]
[309751621,1704075032486,-1332.05171695,0.0002421,2]
[309751622,1704075032496,-1349.55044235,0.0002421,5]
[309751623,1704075032507,-1608.62044092,0.0002421,2]
[309751624,1704075032519,-448.04870661,0.0002421,4]
[309751625,1704075032528,-298.45162343,0.0002421,2]
[309751626,1704075032537,-155.14279736,0.0002421,2]
[309751627,1704075032546,-169.618654,0.00024985,2]
[309751628,1704075032556,-4700.78891106,0.00025479,2]
[309751629,1704075032565,-1598.6211103,0.0002548,2]
[309751630,1704075032574,-155.48516515,0.00025898,2]